bitfinex/quotes_BTCUSD_20250904
["timestamp","ask_amount","ask_price","bid_price","bid_amount"]
[1756954896434,0.00313691,111630.0,111620.0,0.79662187]
[1756954896760,0.00313691,111630.0,111620.0,0.94794187]
[1756954897529,0.00313691,111630.0,111620.0,0.44950313]
[1756954897790,0.00313691,111630.0,111620.0,0.94794187]
[1756954902435,0.00313691,111630.0,111620.0,0.94790187]
[1756954907149,0.00313691,111630.0,111620.0,0.60078313]
[1756954907365,0.00313691,111630.0,111620.0,0.94790187]
[1756954908072,0.00313691,111630.0,111620.0,0.60078313]
[1756954908300,0.00313691,111630.0,111620.0,0.94790187]
[1756954910579,0.00313691,111630.0,111620.0,0.60078313]
[1756954910811,0.00526691,111630.0,111620.0,0.44950313]
[1756954911036,0.35238565,111630.0,111620.0,0.60074313]
[1756954911491,0.35238565,111630.0,111620.0,0.52013982]
[1756954912707,0.53154895,111630.0,111620.0,0.52013982]
[1756954912909,0.53154895,111630.0,111620.0,0.42822383]
[1756954913139,0.53154895,111630.0,111620.0,0.40129935]
[1756954915825,0.53154895,111630.0,111620.0,0.07088]
[1756954915826,0.87866769,111630.0,111620.0,0.07088]
[1756954916121,0.90189769,111630.0,111620.0,0.15324]
[1756954916504,0.55477895,111630.0,111620.0,0.15324]
[1756954917093,0.20766021,111630.0,111620.0,0.15324]
[1756954917545,0.20766021,111630.0,111620.0,0.33241935]
[1756954917752,0.55477895,111630.0,111620.0,0.33241935]
[1756954918115,0.53154895,111630.0,111620.0,0.33241935]
[1756954920546,0.18443021,111630.0,111620.0,0.33241935]
[1756954920778,0.53154895,111630.0,111620.0,0.15324]
[1756954922464,0.68278895,111630.0,111620.0,0.002]
[1756954923066,1.39313769,111630.0,111620.0,0.002]
[1756954923438,1.39313769,111630.0,111620.0,0.001]
[1756954923669,1.4200708,111630.0,111620.0,0.001]
[1756954924083,0.17917935,111620.0,111610.0,0.15124]
[1756954924272,0.87852683,111620.0,111610.0,0.15124]
[1756954924497,0.18428935,111620.0,111610.0,0.15124]
[1756954924943,0.53140809,111620.0,111600.0,0.25704499]
[1756954925165,0.52929415,111610.0,111600.0,0.34000041]
[1756954925378,0.53142415,111610.0,111600.0,0.49124041]
[1756954926017,0.53142415,111610.0,111600.0,0.06888]
[1756954926236,0.53142415,111610.0,111600.0,0.15128]
[1756954926237,0.18430541,111610.0,111600.0,0.15128]
[1756954926446,0.53142415,111610.0,111600.0,0.15128]
[1756954927380,0.18430541,111610.0,111600.0,0.15228]
[1756954927589,0.53142415,111610.0,111600.0,0.15328]
[1756954927904,0.53142415,111610.0,111600.0,0.15228]
[1756954928324,0.00511,111610.0,111600.0,0.33249146]
[1756954928535,0.36129125,111610.0,111600.0,0.33249146]
[1756954928749,0.54048666,111610.0,111600.0,0.33249146]
[1756954928981,0.19336792,111610.0,111600.0,0.15328]
[1756954929204,0.54048666,111610.0,111600.0,0.15328]
[1756954930050,0.01417251,111610.0,111600.0,0.33249146]
[1756954930251,0.52262575,111620.0,111610.0,0.17919541]
[1756954930468,0.34508,111620.0,111610.0,0.17919541]
[1756954930675,0.69219874,111620.0,111610.0,0.17919541]
[1756954931483,0.88046038,111620.0,111610.0,0.17919541]
[1756954933510,0.99633045,111620.0,111610.0,0.17919541]
[1756954934331,0.35416229,111620.0,111610.0,0.17919541]
[1756954934782,0.99633045,111620.0,111610.0,0.17919541]
[1756954935683,0.99633045,111620.0,111610.0,0.18019541]
[1756954935909,0.99633045,111620.0,111610.0,0.18119541]
[1756954937012,0.53334164,111620.0,111610.0,0.18119541]
[1756954937222,0.99633045,111620.0,111610.0,0.18119541]
[1756954937857,0.35416229,111620.0,111610.0,0.18119541]
[1756954938069,0.8171511,111620.0,111610.0,0.18119541]
[1756954938283,0.99633045,111620.0,111610.0,0.18119541]
[1756954940306,0.8171511,111620.0,111610.0,0.18119541]
[1756954940507,0.00508,111620.0,111610.0,0.18119541]
[1756954940711,0.69898376,111630.0,111620.0,0.17917935]
[1756954940933,0.70406376,111630.0,111620.0,0.33205935]
[1756954941578,0.70406376,111630.0,111610.0,0.18019541]
[1756954941780,0.00309,111620.0,111610.0,0.33207541]
[1756954942100,0.00508,111620.0,111610.0,0.33207541]
[1756954942876,0.01421344,111620.0,111610.0,0.33207541]
[1756954943263,0.01421344,111620.0,111610.0,0.33307541]
[1756954943402,0.00309,111620.0,111610.0,0.33307541]
[1756954943613,1.1619738,111630.0,111620.0,0.17917935]
[1756954943850,1.1670538,111630.0,111620.0,0.17917935]
[1756954944489,1.1670538,111630.0,111610.0,0.33307541]
[1756954944638,0.00309,111620.0,111610.0,0.33207541]
[1756954944848,0.00508,111620.0,111610.0,0.18019541]
[1756954945053,0.00508,111620.0,111610.0,0.33295541]
[1756954945236,0.00508,111620.0,111610.0,0.33195541]
[1756954946400,0.00508,111620.0,111610.0,0.33295541]
[1756954947633,0.00508,111620.0,111610.0,0.33395541]
[1756954947986,0.00309,111620.0,111610.0,0.33395541]
[1756954948209,1.17096622,111630.0,111620.0,0.17917935]
[1756954948376,1.17604622,111630.0,111620.0,0.17917935]
[1756954948801,1.14901617,111630.0,111620.0,0.17917935]
[1756954949410,0.50686283,111630.0,111620.0,0.17917935]
[1756954949632,0.68602613,111630.0,111620.0,0.17917935]
[1756954950997,1.14901494,111630.0,111620.0,0.17917935]
[1756954951736,0.50686283,111630.0,111620.0,0.17917935]
[1756954952030,1.14901494,111630.0,111620.0,0.17917935]
[1756954952493,0.50674283,111630.0,111620.0,0.17917935]
[1756954953145,0.68590613,111630.0,111620.0,0.17917935]
[1756954953533,0.71283743,111630.0,111620.0,0.17917935]
[1756954953796,0.50487283,111630.0,111620.0,0.18141909]
[1756954954063,0.50686283,111630.0,111620.0,0.18141909]
[1756954955368,0.68602613,111630.0,111620.0,0.18141909]
[1756954955572,1.14901494,111630.0,111620.0,0.33417909]
[1756954955804,1.14901494,111630.0,111620.0,0.33193935]
[1756954956822,1.14901494,111630.0,111610.0,0.33199541]
[1756954957048,0.00309,111620.0,111610.0,0.4239114]
[1756954957243,0.00508,111620.0,111610.0,0.4239114]
[1756954958482,0.00508,111620.0,111610.0,0.4249114]
[1756954958722,0.00508,111620.0,111610.0,0.4259114]
[1756954961400,0.00508,111620.0,111610.0,0.4257514]
[1756954961880,0.64724816,111620.0,111610.0,0.002]
[1756954963030,0.33705935,111620.0,111610.0,0.002]
[1756954963204,0.80004816,111620.0,111610.0,0.002]
[1756954965684,1.14004816,111620.0,111610.0,0.002]
[1756954965882,1.16359816,111620.0,111610.0,0.002]
[1756954966307,1.19053437,111620.0,111610.0,0.002]
[1756954968506,1.23069224,111620.0,111610.0,0.002]
[1756954968872,1.19053437,111620.0,111610.0,0.002]
[1756954969833,1.03773437,111620.0,111610.0,0.002]
[1756954970040,1.19085437,111620.0,111610.0,0.002]
[1756954970249,0.72786556,111620.0,111610.0,0.002]
[1756954970460,1.19085437,111620.0,111610.0,0.002]
[1756954973365,1.03773437,111620.0,111610.0,0.002]
[1756954973565,1.19093437,111620.0,111610.0,0.002]
[1756954973949,1.25981437,111620.0,111610.0,0.002]
[1756954974197,1.35173036,111620.0,111610.0,0.002]
[1756954974395,1.46458517,111620.0,111610.0,0.002]
[1756954974596,1.37270918,111620.0,111610.0,0.002]
[1756954974796,0.90972037,111620.0,111610.0,0.002]
[1756954975049,1.37270918,111620.0,111610.0,0.002]
[1756954975393,0.17922394,111600.0,111580.0,0.18860422]
[1756954975596,0.79838275,111600.0,111580.0,0.18860422]
[1756954975795,0.64514275,111600.0,111580.0,0.18860422]
[1756954975996,0.82532164,111600.0,111580.0,0.18860422]
[1756954976566,0.00293,111590.0,111580.0,0.18860422]
[1756954977390,0.82532164,111600.0,111580.0,0.19160422]
[1756954977791,0.82532164,111600.0,111580.0,0.18907373]
[1756954978053,0.82532164,111600.0,111580.0,0.19107373]
[1756954978213,0.00293,111590.0,111580.0,0.19507373]
[1756954978424,0.00293,111590.0,111580.0,0.19107373]
[1756954978820,0.00293,111590.0,111580.0,0.19407373]
[1756954979020,0.18306889,111600.0,111590.0,0.17922752]
[1756954979221,0.18511889,111600.0,111590.0,0.17922752]
[1756954979435,0.6481077,111600.0,111590.0,0.17922752]
[1756954979636,0.82731916,111600.0,111590.0,0.17922752]
[1756954979836,0.36433035,111600.0,111590.0,0.17922752]
[1756954980278,0.98511422,111610.0,111600.0,0.17921146]
[1756954980451,0.67536541,111610.0,111600.0,0.17921146]
[1756954980668,0.36986669,111610.0,111600.0,0.17921146]
[1756954981110,0.52310669,111610.0,111600.0,0.17921146]
[1756954981320,0.9831655,111610.0,111600.0,0.17921146]
[1756954981472,0.9831655,111610.0,111600.0,0.1814516]
[1756954981677,1.16529091,111610.0,111600.0,0.1814516]
[1756954982089,1.16726091,111610.0,111600.0,0.1824516]
[1756954982315,1.16726091,111610.0,111600.0,0.18121146]
[1756954982516,1.16726091,111610.0,111600.0,0.1834516]
[1756954983363,0.7042721,111610.0,111600.0,0.002]
[1756954983649,1.16726091,111610.0,111600.0,0.002]
[1756954984747,0.7042721,111610.0,111600.0,0.002]
[1756954984918,1.16726091,111610.0,111600.0,0.002]
[1756954990945,1.19222091,111610.0,111600.0,0.002]
[1756954991379,0.6993721,111610.0,111600.0,0.002]
[1756954991592,0.03214669,111610.0,111600.0,0.18121146]
[1756954991819,0.02693669,111610.0,111600.0,0.18121146]
[1756954992038,0.00312,111620.0,111610.0,0.17919541]
[1756954992256,0.03005559,111620.0,111610.0,0.17919541]
[1756954992468,0.00521,111620.0,111610.0,0.17919541]
[1756954992902,0.46819881,111620.0,111610.0,0.17919541]
[1756954993928,0.64737816,111620.0,111600.0,0.18021146]
[1756954994138,0.46610881,111610.0,111600.0,0.17921146]
[1756954994439,0.00521,111610.0,111600.0,0.17921146]
[1756954994647,0.46819881,111610.0,111600.0,0.17921146]
[1756954995069,0.00521,111610.0,111600.0,0.17921146]
[1756954995284,0.46819881,111610.0,111600.0,0.17921146]
[1756954995515,0.35250684,111610.0,111600.0,0.17921146]
[1756954995724,0.35250684,111610.0,111600.0,0.18021146]
[1756954996427,0.69158225,111610.0,111600.0,0.001]
[1756954996666,1.37887909,111610.0,111600.0,0.001]
[1756954996897,1.40581738,111610.0,111600.0,0.001]
[1756954997273,1.40581738,111610.0,111600.0,0.002]
[1756954998495,1.49773337,111610.0,111600.0,0.002]
[1756954998914,1.15043653,111610.0,111600.0,0.002]
[1756954999118,1.49773337,111610.0,111600.0,0.002]
[1756954999330,0.64325969,111610.0,111600.0,0.002]
[1756954999545,1.15039653,111610.0,111600.0,0.001]
[1756955000745,0.17922092,111600.0,111580.0,0.34891446]
[1756955000950,0.35250684,111590.0,111580.0,0.34891446]
[1756955001575,0.53173436,111590.0,111580.0,0.33995229]
[1756955001781,0.18443752,111590.0,111580.0,0.33995229]
[1756955001963,0.53173436,111590.0,111580.0,0.33995229]
[1756955002160,0.53173436,111590.0,111580.0,0.34095229]
[1756955002499,0.53173436,111590.0,111580.0,0.33995229]
[1756955002782,0.00521,111590.0,111580.0,0.34095229]
[1756955002987,0.00521,111590.0,111580.0,0.33995229]
[1756955003184,0.35250684,111590.0,111580.0,0.33995229]
[1756955003381,0.35250684,111590.0,111580.0,0.34295229]
[1756955004065,0.35250684,111590.0,111580.0,0.34495229]
[1756955004420,0.53173436,111590.0,111580.0,0.34495229]
[1756955004816,0.18443752,111590.0,111580.0,0.34495229]
[1756955005034,0.35250684,111590.0,111580.0,0.34495229]
[1756955005238,0.00521,111590.0,111580.0,0.34495229]
[1756955005433,0.53173436,111590.0,111580.0,0.34495229]
[1756955005670,0.18443752,111590.0,111580.0,0.34495229]
[1756955005869,0.53173436,111590.0,111580.0,0.34495229]
[1756955006097,0.18443752,111590.0,111580.0,0.34495229]
[1756955006218,0.53173436,111590.0,111580.0,0.34495229]
[1756955007477,0.53173436,111590.0,111580.0,0.16570951]
[1756955008565,0.53173436,111590.0,111580.0,0.3449531]
[1756955008771,0.53169436,111590.0,111580.0,0.3449531]
[1756955008982,0.53169436,111590.0,111580.0,0.16570951]
[1756955010626,1.2189912,111590.0,111580.0,0.16514951]
[1756955010835,1.3782712,111590.0,111580.0,0.00586951]
[1756955011043,0.68367752,111590.0,111580.0,0.00586951]
[1756955011286,1.03093436,111590.0,111580.0,0.00586951]
[1756955011492,1.03093436,111590.0,111580.0,0.00386951]
[1756955011689,1.03093436,111590.0,111580.0,0.00086951]
[1756955012106,1.05787739,111590.0,111580.0,0.00286951]
[1756955012516,1.40517423,111590.0,111580.0,0.00286951]
[1756955012715,1.24593423,111590.0,111580.0,0.00286951]
[1756955012927,1.40513423,111590.0,111580.0,0.00286951]
[1756955013230,1.49705022,111590.0,111580.0,0.00286951]
[1756955013662,1.49685022,111590.0,111580.0,0.00286951]
[1756955014213,0.80225654,111590.0,111580.0,0.00186951]
[1756955014415,1.49685022,111590.0,111580.0,0.00186951]
[1756955014657,1.49685022,111590.0,111580.0,0.00286951]
[1756955014864,0.99055338,111590.0,111580.0,0.00286951]
[1756955017566,1.33785022,111590.0,111580.0,0.00286951]
[1756955019728,0.64325654,111590.0,111580.0,0.00286951]
[1756955019935,1.33785022,111590.0,111580.0,0.00286951]
[1756955022121,1.33785022,111590.0,111580.0,0.16154951]
[1756955022377,0.64325654,111590.0,111580.0,0.16154951]
[1756955022557,1.33785022,111590.0,111580.0,0.16154951]
[1756955022977,0.64325654,111590.0,111580.0,0.16154951]
[1756955023202,1.33785022,111590.0,111580.0,0.16154951]
[1756955024596,1.58868621,111590.0,111580.0,0.00286951]
[1756955024824,1.33785022,111590.0,111580.0,0.00286951]
[1756955025046,0.36694303,111590.0,111580.0,0.1821131]
[1756955025288,0.34729684,111590.0,111580.0,0.2510331]
[1756955025512,0.04398552,111610.0,111600.0,0.17921146]
[1756955025734,0.87889909,111610.0,111600.0,0.15888]
[1756955026280,1.21889909,111610.0,111600.0,0.15888]
[1756955026520,0.52430541,111610.0,111600.0,0.15888]
[1756955026746,1.21989909,111610.0,111600.0,0.15888]
[1756955027199,0.341,111610.0,111600.0,0.33809146]
[1756955027420,0.68829684,111610.0,111600.0,0.33809146]
[1756955027642,0.87043225,111610.0,111600.0,0.33809146]
[1756955028090,1.21989909,111610.0,111600.0,0.33809146]
[1756955028492,0.52630541,111610.0,111600.0,0.33809146]
[1756955028719,1.22089909,111610.0,111600.0,0.33809146]
[1756955029412,0.87360225,111610.0,111600.0,0.33809146]
[1756955029597,1.22089909,111610.0,111600.0,0.33809146]
[1756955029812,1.22089909,111610.0,111600.0,0.15868]
[1756955030043,0.52630541,111610.0,111600.0,0.33789146]
[1756955030406,0.87360225,111610.0,111600.0,0.33789146]
[1756955030729,1.22089909,111610.0,111600.0,0.33789146]
[1756955030946,0.87360225,111610.0,111600.0,0.33789146]
[1756955032034,0.52630541,111610.0,111600.0,0.33789146]
[1756955032447,0.87360225,111610.0,111600.0,0.33789146]
[1756955032660,0.87360225,111610.0,111600.0,0.17921146]
[1756955032867,0.87360225,111610.0,111600.0,0.33769146]
[1756955033075,0.52630541,111610.0,111600.0,0.33769146]
[1756955033285,0.87360225,111610.0,111600.0,0.17921146]
[1756955033495,0.87360225,111610.0,111600.0,0.33769146]
[1756955034383,0.69223684,111610.0,111600.0,0.33769146]
[1756955034948,0.87143225,111610.0,111600.0,0.33769146]
[1756955035839,0.342,111610.0,111600.0,0.33769146]
[1756955036015,0.002,111610.0,111600.0,0.33769146]
[1756955036170,0.34929684,111610.0,111600.0,0.33769146]
[1756955038637,0.35223684,111610.0,111600.0,0.33769146]
[1756955039292,0.00494,111610.0,111600.0,0.33769146]
[1756955039698,0.35223684,111610.0,111600.0,0.33769146]
[1756955040982,0.53360225,111610.0,111600.0,0.33725146]
[1756955042018,0.00711,111610.0,111600.0,0.33725146]
[1756955042267,0.35340684,111610.0,111600.0,0.33725146]
[1756955042467,0.35240684,111610.0,111600.0,0.33725146]
[1756955042660,0.53260225,111610.0,111600.0,0.33725146]
[1756955042870,0.53260225,111610.0,111600.0,0.33717146]
[1756955043417,0.53260225,111610.0,111590.0,0.17922752]
[1756955043637,0.18236541,111610.0,111600.0,0.15784]
[1756955043862,0.18236541,111610.0,111600.0,0.15776]
[1756955044069,0.18236541,111610.0,111600.0,0.33697146]
[1756955044280,0.18430541,111610.0,111600.0,0.15776]
[1756955044909,0.53160225,111610.0,111600.0,0.33697146]
[1756955045342,0.53160225,111610.0,111600.0,0.15776]
[1756955045819,0.17921146,111600.0,111580.0,0.28493196]
[1756955046043,0.35023684,111590.0,111580.0,0.37684795]
[1756955046259,0.35240684,111590.0,111580.0,0.44261196]
[1756955046464,0.35240684,111590.0,111580.0,0.41567527]
[1756955047761,0.35240684,111590.0,111580.0,0.41667527]
[1756955047991,0.35240684,111590.0,111580.0,0.41967527]
[1756955048122,0.35240684,111590.0,111580.0,0.41867527]
[1756955048342,0.53163436,111590.0,111580.0,0.07278951]
[1756955048547,0.18433752,111590.0,111580.0,0.07278951]
[1756955048808,0.18433752,111590.0,111580.0,0.23234951]
[1756955048809,0.53163436,111590.0,111580.0,0.23234951]
[1756955055591,0.64760972,111590.0,111580.0,0.23234951]
[1756955056162,0.18433752,111590.0,111580.0,0.23234951]
[1756955056367,0.64760972,111590.0,111580.0,0.23234951]
[1756955058414,0.64760972,111590.0,111580.0,0.07478951]
[1756955058618,0.64760972,111590.0,111580.0,0.23174951]
[1756955059702,0.18433752,111590.0,111580.0,0.23174951]
[1756955059915,0.64760972,111590.0,111580.0,0.23174951]
[1756955060579,0.64760972,111590.0,111580.0,0.16282951]
[1756955060830,0.64760972,111590.0,111580.0,0.00586951]
[1756955061220,0.73952571,111590.0,111580.0,0.16294951]
[1756955061744,0.92350998,111590.0,111580.0,0.00586951]
[1756955063941,0.92350998,111590.0,111580.0,0.00386951]
[1756955064299,0.92350998,111590.0,111580.0,0.00186951]
[1756955064502,0.92350998,111590.0,111580.0,0.00386951]
[1756955064736,0.92350998,111590.0,111580.0,0.00286951]
[1756955064931,0.92350998,111590.0,111580.0,0.00386951]
[1756955065130,1.26350998,111590.0,111580.0,0.00386951]
[1756955065908,1.26346998,111590.0,111580.0,0.00386951]
[1756955066731,1.10646998,111590.0,111580.0,0.00286951]
[1756955067531,1.10646998,111590.0,111580.0,0.00086951]
[1756955068329,0.64319778,111590.0,111580.0,0.00086951]
[1756955068546,1.10646998,111590.0,111580.0,0.00086951]
[1756955068924,1.10429074,111590.0,111580.0,0.00086951]
[1756955070736,0.64101854,111590.0,111580.0,0.00086951]
[1756955071068,1.10429074,111590.0,111580.0,0.00086951]
[1756955072117,1.10429074,111590.0,111580.0,0.15778951]
[1756955072921,1.10429074,111590.0,111580.0,0.00086951]
[1756955073136,0.79781854,111590.0,111580.0,0.00086951]
[1756955073343,1.26109074,111590.0,111580.0,0.00086951]
[1756955073790,0.64101854,111590.0,111580.0,0.00086951]
[1756955074026,1.10429074,111590.0,111580.0,0.00086951]
[1756955076209,0.64101854,111590.0,111580.0,0.00086951]
[1756955076411,1.00944399,111590.0,111580.0,0.00285951]
[1756955076624,0.98249972,111590.0,111580.0,0.00285951]
[1756955077457,0.98249972,111590.0,111580.0,0.1821031]
[1756955077458,0.51922752,111590.0,111580.0,0.1821031]
[1756955077663,0.98249972,111590.0,111580.0,0.1821031]
[1756955078482,1.02255937,111590.0,111580.0,0.1821031]
[1756955078920,1.02571937,111590.0,111580.0,0.00285951]
[1756955081957,1.02786937,111590.0,111580.0,0.1821031]
[1756955082128,1.02571937,111590.0,111580.0,0.1821031]
[1756955082556,1.02786937,111590.0,111580.0,0.1821031]
[1756955083635,1.02786937,111590.0,111580.0,0.1831031]
[1756955083854,1.02786937,111590.0,111580.0,0.1851031]
[1756955086170,1.02786937,111590.0,111580.0,0.00585951]
[1756955086384,1.02786937,111590.0,111580.0,0.16006951]
[1756955087656,1.02786937,111590.0,111580.0,0.00386951]
[1756955088077,1.02786937,111590.0,111580.0,0.16014951]
[1756955088876,0.98780972,111590.0,111580.0,0.16014951]
[1756955089720,0.98780972,111590.0,111580.0,0.00386951]
[1756955089935,0.98780972,111590.0,111580.0,0.16002951]
[1756955090494,0.98780972,111590.0,111580.0,0.00386951]
[1756955090699,0.98780972,111590.0,111580.0,0.16014951]
[1756955090910,0.52453752,111590.0,111580.0,0.16014951]
[1756955091371,0.98780972,111590.0,111580.0,0.15814951]
[1756955092012,0.98780972,111590.0,111580.0,0.00186951]
[1756955092625,1.26213255,111590.0,111580.0,0.00186951]
[1756955093053,1.28907715,111590.0,111580.0,0.00086951]
[1756955096114,1.26287031,111590.0,111580.0,0.00086951]
[1756955097718,1.10667031,111590.0,111580.0,0.00086951]
[1756955097926,1.26271031,111590.0,111580.0,0.00086951]
[1756955100463,1.26263031,111590.0,111580.0,0.00086951]
[1756955100808,1.26255031,111590.0,111580.0,0.00086951]
[1756955105881,1.26251031,111590.0,111580.0,0.00086951]
[1756955107211,1.26247031,111590.0,111580.0,0.00086951]
[1756955108860,1.10667031,111590.0,111580.0,0.00086951]
[1756955109085,1.26235031,111590.0,111580.0,0.00086951]
[1756955110063,0.79903811,111590.0,111580.0,0.00086951]
[1756955110270,1.26231031,111590.0,111580.0,0.00086951]
[1756955115525,1.33847115,111590.0,111580.0,0.00086951]
[1756955115736,1.49403115,111590.0,111580.0,0.00086951]
[1756955116469,1.33847115,111590.0,111580.0,0.00086951]
[1756955116648,1.49403115,111590.0,111580.0,0.00086951]
[1756955119354,1.49383115,111590.0,111580.0,0.00086951]
[1756955120190,0.79871811,111590.0,111580.0,0.00086951]
[1756955120408,1.49379115,111590.0,111580.0,0.00086951]
[1756955123414,1.53459773,111590.0,111580.0,0.00086951]
[1756955125171,1.40627198,111590.0,111580.0,0.00086951]
[1756955125351,1.53455773,111590.0,111580.0,0.00086951]
[1756955125844,1.53451773,111590.0,111580.0,0.00086951]
[1756955126249,0.68420469,111590.0,111580.0,0.00086951]
[1756955126454,1.53451773,111590.0,111580.0,0.00086951]
[1756955129180,1.53651773,111590.0,111580.0,0.00086951]
[1756955129580,1.53551773,111590.0,111580.0,0.00086951]
[1756955129790,0.84160469,111590.0,111580.0,0.00086951]
[1756955130010,1.53667773,111590.0,111580.0,0.00086951]
[1756955130664,2.02933133,111590.0,111580.0,0.00086951]
[1756955131096,2.05027015,111590.0,111580.0,0.00086951]
[1756955131314,2.05027015,111590.0,111570.0,0.0048941]
[1756955131315,0.5933835,111580.0,111570.0,0.0048941]
[1756955131538,2.93537262,111580.0,111570.0,0.0048941]
[1756955131776,3.1212546,111580.0,111570.0,0.0048941]
[1756955131997,3.1482061,111580.0,111570.0,0.0048941]
[1756955132891,0.59019847,111570.0,111560.0,1e-08]
[1756955133125,1.31793206,111570.0,111560.0,1e-08]
[1756955133334,1.32307206,111570.0,111560.0,1e-08]
[1756955133550,1.41498805,111570.0,111560.0,1e-08]
[1756955134400,2.99227065,111570.0,111560.0,1e-08]
[1756955134618,1.93214001,111570.0,111560.0,1e-08]
[1756955134839,1.40330467,111570.0,111560.0,1e-08]
[1756955135044,1.47194868,111570.0,111560.0,1e-08]
[1756955135254,1.8194852,111570.0,111560.0,0.00200001]
[1756955135515,1.8214852,111570.0,111560.0,0.00200001]
[1756955135742,1.8214852,111570.0,111560.0,1e-08]
[1756955135946,1.91540119,111570.0,111560.0,0.00100001]
[1756955136158,1.56786467,111570.0,111560.0,0.00100001]
[1756955136379,0.97224868,111570.0,111560.0,0.00307001]
[1756955136607,0.43773564,111570.0,111560.0,0.00307001]
[1756955136896,1.47280868,111570.0,111560.0,0.00307001]
[1756955137084,1.13280868,111570.0,111560.0,0.00307001]
[1756955137293,1.47280868,111570.0,111560.0,0.00307001]
[1756955137714,0.52525965,111570.0,111560.0,0.00307001]
[1756955137936,0.87079617,111570.0,111560.0,0.18401573]
[1756955138155,0.52325965,111570.0,111560.0,0.18401573]
[1756955138368,0.35353652,111570.0,111560.0,0.18401573]
[1756955138591,0.34953652,111570.0,111560.0,0.18301573]
[1756955138811,0.35153652,111570.0,111560.0,0.18401573]
[1756955139029,0.68753652,111570.0,111560.0,0.18301573]
[1756955139472,0.20619509,111580.0,111570.0,0.17925965]
[1756955139689,0.22946611,111590.0,111580.0,0.17924359]
[1756955139690,0.18865953,111590.0,111580.0,0.17924359]
[1756955139906,0.91067514,111590.0,111580.0,0.00209]
[1756955140132,0.2156021,111590.0,111580.0,0.00209]
[1756955140353,0.50211064,111590.0,111580.0,0.18300359]
[1756955140591,0.86723468,111590.0,111580.0,0.18300359]
[1756955140806,0.52723468,111590.0,111580.0,0.18300359]
[1756955141021,0.17969816,111590.0,111580.0,0.18300359]
[1756955141231,0.51969816,111590.0,111580.0,0.18300359]
[1756955141848,0.86723468,111590.0,111580.0,0.18133359]
[1756955142266,0.86723468,111590.0,111580.0,0.18233359]
[1756955142467,1.2147712,111590.0,111580.0,0.00309]
[1756955142938,1.2147712,111590.0,111580.0,0.00409]
[1756955143165,1.3811512,111590.0,111580.0,0.003]
[1756955144783,1.96572079,111590.0,111580.0,0.003]
[1756955145171,2.05779079,111590.0,111580.0,0.003]
[1756955145857,0.51925965,111570.0,111560.0,1e-08]
[1756955146111,1.37601269,111570.0,111560.0,1e-08]
[1756955146326,1.37601269,111570.0,111560.0,0.00108001]
[1756955146542,1.21935269,111570.0,111560.0,0.00108001]
[1756955146753,1.42069685,111570.0,111560.0,0.00108001]
[1756955146970,1.44764484,111570.0,111560.0,0.00108001]
[1756955147805,1.44262484,111570.0,111560.0,0.00108001]
[1756955148028,1.40284068,111570.0,111560.0,0.00108001]
[1756955148275,1.40284068,111570.0,111560.0,0.00308001]
[1756955148700,1.40786068,111570.0,111560.0,0.00308001]
[1756955149108,0.71278764,111570.0,111560.0,0.00200001]
[1756955149429,1.49977667,111570.0,111560.0,0.00200001]
[1756955149980,1.84731319,111570.0,111560.0,0.00200001]
[1756955150222,1.49977667,111570.0,111560.0,0.00200001]
[1756955150848,1.33821667,111570.0,111560.0,1e-08]
[1756955151260,1.33821667,111570.0,111560.0,0.00100001]
[1756955151504,1.50001667,111570.0,111560.0,0.00100001]
[1756955151711,0.80494363,111570.0,111560.0,1e-08]
[1756955151925,1.53990179,111570.0,111560.0,1e-08]
[1756955152144,1.53990179,111570.0,111560.0,0.00100001]
[1756955152357,0.84482875,111570.0,111560.0,0.00100001]
[1756955152568,1.53990179,111570.0,111560.0,0.00100001]
[1756955154290,1.53978179,111570.0,111560.0,0.00100001]
[1756955154513,3.02721778,111570.0,111560.0,0.00100001]
[1756955154728,1.61508637,111560.0,111550.0,0.00426087]
[1756955154940,1.93812236,111560.0,111550.0,0.00426087]
[1756955155146,1.94113236,111560.0,111550.0,0.00426087]
[1756955155352,2.0402267,111560.0,111550.0,0.00426087]
[1756955156023,2.0402267,111560.0,111550.0,0.00726087]
[1756955156423,2.0402267,111560.0,111550.0,0.00626087]
[1756955157125,0.99761714,111560.0,111550.0,0.00626087]
[1756955157351,1.98890561,111560.0,111550.0,0.00426087]
[1756955157564,2.01511245,111560.0,111550.0,0.00526087]
[1756955158167,2.01511245,111560.0,111550.0,0.00426087]
[1756955158403,1.85303245,111560.0,111550.0,0.00426087]
[1756955158617,1.98990561,111560.0,111550.0,0.00426087]
[1756955158827,1.73590962,111560.0,111550.0,0.00635087]
[1756955159048,1.22251711,111560.0,111550.0,0.00635087]
[1756955159256,1.38455711,111560.0,111550.0,0.00635087]
[1756955159714,1.38756711,111560.0,111550.0,0.00635087]
[1756955159935,1.73511363,111560.0,111550.0,0.00635087]
[1756955160363,1.38657711,111560.0,111550.0,0.00635087]
[1756955160601,1.38155711,111560.0,111550.0,0.00735087]
[1756955162509,1.38657711,111560.0,111550.0,0.00735087]
[1756955162712,1.73411363,111560.0,111550.0,0.00526087]
[1756955163327,1.38657711,111560.0,111550.0,0.00526087]
[1756955163801,1.22453711,111560.0,111550.0,0.00526087]
[1756955163995,1.73423363,111560.0,111550.0,0.00526087]
[1756955164206,1.82614962,111560.0,111550.0,0.00526087]
[1756955164629,1.66398962,111560.0,111550.0,0.00526087]
[1756955164847,1.82614962,111560.0,111550.0,0.00526087]
[1756955166315,1.82598962,111560.0,111550.0,0.00526087]
[1756955168149,1.82590962,111560.0,111550.0,0.00526087]
[1756955168381,1.4783331,111560.0,111550.0,0.00526087]
[1756955168607,1.66398962,111560.0,111550.0,0.00526087]
[1756955168831,1.66398962,111560.0,111550.0,0.00735087]
[1756955169048,1.82610962,111560.0,111550.0,0.00735087]
[1756955169683,1.82610962,111560.0,111550.0,0.00526087]
[1756955169917,1.38163711,111560.0,111550.0,0.00736087]
[1756955170367,1.38159711,111560.0,111550.0,0.00736087]
[1756955170559,1.73431363,111560.0,111550.0,0.00736087]
[1756955170780,1.73431363,111560.0,111550.0,0.00526087]
[1756955172724,1.82622962,111560.0,111550.0,0.00526087]
[1756955173113,1.91814561,111560.0,111550.0,0.00526087]
[1756955173562,1.82622962,111560.0,111550.0,0.00526087]
[1756955174282,0.78362006,111560.0,111550.0,0.00526087]
[1756955174492,1.82622962,111560.0,111550.0,0.00526087]
[1756955174927,0.78362006,111560.0,111550.0,0.00526087]
[1756955175136,1.82622962,111560.0,111550.0,0.00526087]
[1756955176545,1.91814561,111560.0,111550.0,0.00526087]
[1756955176945,1.82622962,111560.0,111550.0,0.00526087]
[1756955177583,1.7110281,111560.0,111550.0,0.00526087]
[1756955178285,0.81061431,111560.0,111550.0,0.00526087]
[1756955178490,2.27173203,111560.0,111550.0,0.00526087]
[1756955178892,1.78210117,111560.0,111550.0,0.00526087]